[Event "Live Chess"]
[Site "Chess.com"]
[Date "2023.05.21"]
[Round "-"]
[White "Hacker_2009"]
[Black "Nazar_777"]
[Result "1-0"]
[WhiteElo "1934"]
[BlackElo "1620"]
[TimeControl "300"]
[EndTime "22:19:45 PDT"]
[Termination "Hacker_2009 won by checkmate"]

1. d4 {[%clk 0:04:58.3]} 1... e6 {[%clk 0:04:59.9]} 2. Nf3 {[%clk 0:04:56.7]}
2... a6 {[%clk 0:04:53.9]} 3. c4 {[%clk 0:04:55.1]} 3... h5 {[%clk 0:04:53.2]}
4. e3 {[%clk 0:04:53.6]} 4... c5 {[%clk 0:04:52.6]} 5. Nc3 {[%clk 0:04:52.2]}
5... cxd4 {[%clk 0:04:51.5]} 6. Nxd4 {[%clk 0:04:50.7]} 6... Nc6 {[%clk
0:04:50.7]} 7. Be2 {[%clk 0:04:50.3]} 7... Nf6 {[%clk 0:04:49.4]} 8. O-O {[%clk
0:04:49.2]} 8... Be7 {[%clk 0:04:48.1]} 9. b3 {[%clk 0:04:48.8]} 9... Qc7 {[%clk
0:04:46.8]} 10. Bb2 {[%clk 0:04:48.4]} 10... Ng4 {[%clk 0:04:45.6]} 11. g3
{[%clk 0:04:39.3]} 11... b6 {[%clk 0:04:43.3]} 12. Nxc6 {[%clk 0:04:37]} 12...
Qxc6 {[%clk 0:04:41.8]} 13. Bf3 {[%clk 0:04:36.2]} 13... Qc7 {[%clk 0:04:32.4]}
14. Bxa8 {[%clk 0:04:34.5]} 14... f5 {[%clk 0:04:31.4]} 15. Bg2 {[%clk 0:04:33]}
15... h4 {[%clk 0:04:29.9]} 16. Ne2 {[%clk 0:04:22.6]} 16... Bf6 {[%clk
0:04:27.4]} 17. Bxf6 {[%clk 0:04:19.9]} 17... gxf6 {[%clk 0:04:26.3]} 18. Nf4
{[%clk 0:04:13.8]} 18... Bb7 {[%clk 0:04:24.5]} 19. Ng6 {[%clk 0:04:08.3]} 19...
Rh6 {[%clk 0:04:20.3]} 20. Nxh4 {[%clk 0:04:04.1]} 20... Rxh4 {[%clk 0:04:19]}
21. Bxb7 {[%clk 0:03:54.9]} 21... Rxh2 {[%clk 0:04:15]} 22. Bf3 {[%clk
0:03:35.2]} 22... Nxe3 {[%clk 0:04:11.7]} 23. Qe2 {[%clk 0:03:22.8]} 23... f4
{[%clk 0:04:03.4]} 24. Kxh2 {[%clk 0:03:18.2]} 24... fxg3+ {[%clk 0:04:01.4]}
25. fxg3 {[%clk 0:03:14.6]} 25... Nf5 {[%clk 0:03:45.4]} 26. Qg2 {[%clk
0:03:03.8]} 26... Kf7 {[%clk 0:03:41.1]} 27. Rae1 {[%clk 0:03:00.3]} 27... Qb8
{[%clk 0:03:29.6]} 28. Qh3 {[%clk 0:02:56.9]} 28... b5 {[%clk 0:03:25.3]} 29.
Qh7+ {[%clk 0:02:55.2]} 29... Ng7 {[%clk 0:03:21.5]} 30. Bh5+ {[%clk 0:02:53.2]}
30... Kf8 {[%clk 0:03:19.1]} 31. Qh8+ {[%clk 0:02:52.5]} 31... Ke7 {[%clk
0:03:10.5]} 32. Qxb8 {[%clk 0:02:51.2]} 32... Nf5 {[%clk 0:03:01.4]} 33. cxb5
{[%clk 0:02:48.8]} 33... axb5 {[%clk 0:02:59.8]} 34. Qxb5 {[%clk 0:02:47.5]}
34... d5 {[%clk 0:02:54.4]} 35. a4 {[%clk 0:02:45.4]} 35... Nd4 {[%clk
0:02:53.1]} 36. Qc5+ {[%clk 0:02:43.2]} 36... Kd7 {[%clk 0:02:50.1]} 37. Qxd4
{[%clk 0:02:43.1]} 37... Kd6 {[%clk 0:02:47.5]} 38. Rxf6 {[%clk 0:02:41.5]}
38... Kc7 {[%clk 0:02:44.9]} 39. Rfxe6 {[%clk 0:02:40.2]} 39... Kb8 {[%clk
0:02:42.9]} 40. Re7 {[%clk 0:02:34.9]} 40... Kc8 {[%clk 0:02:40]} 41. Qc5+
{[%clk 0:02:33.5]} 41... Kd8 {[%clk 0:02:37.1]} 42. Qc7# {[%clk 0:02:32.5]} 1-0

[Event "Live Chess"]
[Site "Chess.com"]
[Date "2023.05.21"]
[Round "-"]
[White "profpirate4"]
[Black "Rusty_Bridges"]
[Result "1-0"]
[WhiteElo "1147"]
[BlackElo "1435"]
[TimeControl "300"]
[EndTime "22:19:48 PDT"]
[Termination "profpirate4 won by checkmate"]

1. d4 {[%clk 0:04:57.8]} 1... d5 {[%clk 0:04:57.6]} 2. c4 {[%clk 0:04:56.6]}
2... e6 {[%clk 0:04:55.2]} 3. Nc3 {[%clk 0:04:55.7]} 3... Bb4 {[%clk 0:04:53]}
4. Qc2 {[%clk 0:04:54.1]} 4... Bxc3+ {[%clk 0:04:50.9]} 5. Qxc3 {[%clk
0:04:52.6]} 5... c6 {[%clk 0:04:50.1]} 6. e3 {[%clk 0:04:49.1]} 6... Nf6 {[%clk
0:04:47.2]} 7. Ne2 {[%clk 0:04:46]} 7... Qc7 {[%clk 0:04:42.6]} 8. cxd5 {[%clk
0:04:38.9]} 8... exd5 {[%clk 0:04:39.2]} 9. Qc2 {[%clk 0:04:37]} 9... Nbd7
{[%clk 0:04:28.6]} 10. Ng3 {[%clk 0:04:35.7]} 10... Nb6 {[%clk 0:04:25.8]} 11.
a3 {[%clk 0:04:33]} 11... Be6 {[%clk 0:04:18.4]} 12. b3 {[%clk 0:04:30.7]} 12...
O-O {[%clk 0:04:11.8]} 13. Bd3 {[%clk 0:04:28.1]} 13... Nc8 {[%clk 0:03:54.2]}
14. O-O {[%clk 0:04:23.4]} 14... Nd6 {[%clk 0:03:52.7]} 15. f3 {[%clk
0:04:18.9]} 15... Rfe8 {[%clk 0:03:41]} 16. Re1 {[%clk 0:04:17.5]} 16... Qd7
{[%clk 0:03:31.3]} 17. Bd2 {[%clk 0:04:13.4]} 17... b6 {[%clk 0:03:28.4]} 18. e4
{[%clk 0:04:07.5]} 18... dxe4 {[%clk 0:03:26.4]} 19. fxe4 {[%clk 0:04:06.3]}
19... Ng4 {[%clk 0:02:57.3]} 20. e5 {[%clk 0:03:57.5]} 20... Nb5 {[%clk
0:02:44.5]} 21. Bxh7+ {[%clk 0:03:53.5]} 21... Kh8 {[%clk 0:02:43.3]} 22. Bd3
{[%clk 0:03:44.5]} 22... Nxd4 {[%clk 0:02:40.4]} 23. Qd1 {[%clk 0:03:20.1]}
23... Nxb3 {[%clk 0:02:30.2]} 24. h3 {[%clk 0:02:55]} 24... Nxa1 {[%clk
0:02:26.2]} 25. hxg4 {[%clk 0:02:46.8]} 25... Bxg4 {[%clk 0:02:24.8]} 26. Be2
{[%clk 0:02:40.4]} 26... Bxe2 {[%clk 0:02:22.9]} 27. Qxe2 {[%clk 0:02:39.3]}
27... Nc2 {[%clk 0:02:03.3]} 28. Qh5+ {[%clk 0:02:08.4]} 28... Kg8 {[%clk
0:01:59.7]} 29. Re2 {[%clk 0:01:45.2]} 29... Nd4 {[%clk 0:01:52.6]} 30. Re4
{[%clk 0:01:36.2]} 30... Nf5 {[%clk 0:01:19.6]} 31. Nxf5 {[%clk 0:01:01.2]}
31... Qxd2 {[%clk 0:01:16]} 32. Rh4 {[%clk 0:00:59.8]} 32... Qe1+ {[%clk
0:00:43.8]} 33. Kh2 {[%clk 0:00:57]} 33... Qxh4+ {[%clk 0:00:31.8]} 34. Qxh4
{[%clk 0:00:54.7]} 34... Rxe5 {[%clk 0:00:28.5]} 35. Ne7+ {[%clk 0:00:51.6]}
35... Kf8 {[%clk 0:00:24.9]} 36. Nxc6 {[%clk 0:00:43.1]} 36... Re6 {[%clk
0:00:15]} 37. Qh8# {[%clk 0:00:38.9]} 1-0

[Event "Live Chess"]
[Site "Chess.com"]
[Date "2023.05.21"]
[Round "-"]
[White "Long1968"]
[Black "ExIsambard"]
[Result "0-1"]
[WhiteElo "1055"]
[BlackElo "1921"]
[TimeControl "300"]
[EndTime "22:20:29 PDT"]
[Termination "ExIsambard won by resignation"]

1. e4 {[%clk 0:04:56.8]} 1... e5 {[%clk 0:04:56.3]} 2. f4 {[%clk 0:04:54.4]}
2... exf4 {[%clk 0:04:55.1]} 3. Bc4 {[%clk 0:04:51.2]} 3... d6 {[%clk
0:04:54.2]} 4. Nf3 {[%clk 0:04:47.6]} 4... h6 {[%clk 0:04:52.4]} 5. h4 {[%clk
0:04:43.6]} 5... Be6 {[%clk 0:04:47.9]} 6. Bb3 {[%clk 0:04:36.4]} 6... Bxb3
{[%clk 0:04:46.4]} 7. axb3 {[%clk 0:04:32.9]} 7... Be7 {[%clk 0:04:41.3]} 8. O-O
{[%clk 0:04:27.3]} 8... Bxh4 {[%clk 0:04:36.2]} 9. d4 {[%clk 0:04:24.2]} 9...
Bg5 {[%clk 0:04:34.4]} 10. Nc3 {[%clk 0:03:47.9]} 10... Ne7 {[%clk 0:04:32.7]}
11. Ne2 {[%clk 0:03:42.3]} 11... Ng6 {[%clk 0:04:28.1]} 12. Bd2 {[%clk
0:03:25.9]} 12... O-O {[%clk 0:04:26.1]} 13. Qc1 {[%clk 0:03:20.2]} 13... Re8
{[%clk 0:04:20.8]} 14. Nxf4 {[%clk 0:02:29.9]} 14... Nxf4 {[%clk 0:04:16.8]} 15.
Bxf4 {[%clk 0:02:25.9]} 15... Nc6 {[%clk 0:03:52.7]} 16. Bxg5 {[%clk 0:02:11.9]}
16... hxg5 {[%clk 0:03:51.2]} 17. Nxg5 {[%clk 0:02:03.9]} 17... f6 {[%clk
0:03:43.6]} 18. Qf4 {[%clk 0:01:19.2]} 18... Nxd4 {[%clk 0:03:41.4]} 19. Nh3
{[%clk 0:00:36]} 19... Ne2+ {[%clk 0:03:39.5]} 0-1

[Event "Live Chess"]
[Site "Chess.com"]
[Date "2023.05.21"]
[Round "-"]
[White "CheckThis4"]
[Black "matt1979"]
[Result "1-0"]
[WhiteElo "2492"]
[BlackElo "1503"]
[TimeControl "300"]
[EndTime "22:21:18 PDT"]
[Termination "CheckThis4 won by resignation"]

1. d4 {[%clk 0:04:58.3]} 1... e6 {[%clk 0:04:58.1]} 2. Nc3 {[%clk 0:04:57.2]}
2... Bb4 {[%clk 0:04:55.8]} 3. e4 {[%clk 0:04:52.3]} 3... Bxc3+ {[%clk
0:04:43.9]} 4. bxc3 {[%clk 0:04:50.9]} 4... d5 {[%clk 0:04:41.1]} 5. e5 {[%clk
0:04:49.7]} 5... Ne7 {[%clk 0:04:36.9]} 6. Qg4 {[%clk 0:04:48.1]} 6... O-O
{[%clk 0:04:33.9]} 7. Bd3 {[%clk 0:04:44]} 7... Ng6 {[%clk 0:04:18.5]} 8. h4
{[%clk 0:04:42.2]} 8... Re8 {[%clk 0:04:01.1]} 9. h5 {[%clk 0:04:40.6]} 9... Nf8
{[%clk 0:03:56.5]} 10. Bg5 {[%clk 0:04:38.6]} 10... Qd7 {[%clk 0:03:51.5]} 11.
Bf6 {[%clk 0:04:37.3]} 11... g6 {[%clk 0:03:47.9]} 12. Nf3 {[%clk 0:04:30.8]}
12... Nc6 {[%clk 0:03:42.6]} 13. Qg5 {[%clk 0:04:27.4]} 13... Ne7 {[%clk
0:03:39.6]} 14. Qh6 {[%clk 0:04:25.4]} 14... Nf5 {[%clk 0:03:37.7]} 15. Bxf5
{[%clk 0:04:22.4]} 1-0

[Event "Live Chess"]
[Site "Chess.com"]
[Date "2023.05.21"]
[Round "-"]
[White "BillythekidFellowes"]
[Black "LutherSullivan"]
[Result "0-1"]
[WhiteElo "2031"]
[BlackElo "2184"]
[TimeControl "300"]
[EndTime "22:22:36 PDT"]
[Termination "LutherSullivan won by resignation"]

1. e4 {[%clk 0:04:51.8]} 1... e5 {[%clk 0:04:45.2]} 2. Nf3 {[%clk 0:04:50.8]}
2... Nc6 {[%clk 0:04:42.9]} 3. Bc4 {[%clk 0:04:49.2]} 3... Nf6 {[%clk 0:04:41]}
4. d3 {[%clk 0:04:46.6]} 4... Bc5 {[%clk 0:04:39.1]} 5. Bg5 {[%clk 0:04:45.5]}
5... h6 {[%clk 0:04:37.2]} 6. Bh4 {[%clk 0:04:42.9]} 6... g5 {[%clk 0:04:36.1]}
7. Bg3 {[%clk 0:04:42]} 7... a6 {[%clk 0:04:32]} 8. Nc3 {[%clk 0:04:41]} 8... b5
{[%clk 0:04:30.4]} 9. Bb3 {[%clk 0:04:39.7]} 9... d6 {[%clk 0:04:28.4]} 10. O-O
{[%clk 0:04:37.6]} 10... Rg8 {[%clk 0:04:25.1]} 11. Ne2 {[%clk 0:04:30.7]} 11...
h5 {[%clk 0:04:22.8]} 12. h4 {[%clk 0:04:27]} 12... g4 {[%clk 0:04:17.5]} 13.
Nd2 {[%clk 0:04:14.9]} 13... Bb6 {[%clk 0:04:15.5]} 14. c3 {[%clk 0:04:12.4]}
14... Ne7 {[%clk 0:04:06.5]} 15. d4 {[%clk 0:04:09.5]} 15... Ng6 {[%clk
0:04:04.5]} 16. a4 {[%clk 0:04:01.3]} 16... Bb7 {[%clk 0:04:02.9]} 17. a5 {[%clk
0:03:58.5]} 17... Ba7 {[%clk 0:04:01]} 18. Qc2 {[%clk 0:03:50.5]} 18... c5
{[%clk 0:03:44.1]} 19. dxc5 {[%clk 0:03:49.1]} 19... Bxc5 {[%clk 0:03:42.2]} 20.
Rfd1 {[%clk 0:03:43.7]} 20... Rc8 {[%clk 0:03:36.6]} 21. Bd5 {[%clk 0:03:42]}
21... Nxd5 {[%clk 0:03:32]} 22. exd5 {[%clk 0:03:41.9]} 22... Nxh4 {[%clk
0:03:29.1]} 23. Ne4 {[%clk 0:03:37.2]} 23... Ng6 {[%clk 0:03:08.4]} 24. Nc1
{[%clk 0:03:05.7]} 24... h4 {[%clk 0:02:56.6]} 25. Bh2 {[%clk 0:03:00.2]} 25...
g3 {[%clk 0:02:49.6]} 26. Bxg3 {[%clk 0:02:55.5]} 26... hxg3 {[%clk 0:02:47.4]}
27. Nxg3 {[%clk 0:02:55.4]} 27... Nf4 {[%clk 0:02:44.8]} 0-1

[Event "Live Chess"]
[Site "Chess.com"]
[Date "2023.05.21"]
[Round "-"]
[White "1PRK1"]
[Black "smoggyrabbit"]
[Result "0-1"]
[WhiteElo "1362"]
[BlackElo "1740"]
[TimeControl "300"]
[EndTime "22:23:05 PDT"]
[Termination "smoggyrabbit won on time"]

1. e4 {[%clk 0:04:55.4]} 1... e6 {[%clk 0:04:57.4]} 2. d4 {[%clk 0:04:53.3]}
2... d5 {[%clk 0:04:56.4]} 3. Nc3 {[%clk 0:04:51.2]} 3... Nf6 {[%clk 0:04:54.8]}
4. e5 {[%clk 0:04:49.4]} 4... Nfd7 {[%clk 0:04:53.4]} 5. f4 {[%clk 0:04:49]}
5... c5 {[%clk 0:04:52.5]} 6. Nf3 {[%clk 0:04:46.6]} 6... Nc6 {[%clk 0:04:50.3]}
7. Be3 {[%clk 0:04:45.5]} 7... b6 {[%clk 0:04:43.6]} 8. Bb5 {[%clk 0:04:38.6]}
8... Bb7 {[%clk 0:04:41.9]} 9. O-O {[%clk 0:04:29.8]} 9... Be7 {[%clk 0:04:37]}
10. g4 {[%clk 0:04:07.7]} 10... O-O {[%clk 0:04:26.2]} 11. f5 {[%clk 0:04:06.3]}
11... cxd4 {[%clk 0:04:18.5]} 12. Bxc6 {[%clk 0:04:03]} 12... Bxc6 {[%clk
0:04:17.2]} 13. Nxd4 {[%clk 0:04:01.1]} 13... Nxe5 {[%clk 0:03:54.2]} 14. fxe6
{[%clk 0:03:33]} 14... fxe6 {[%clk 0:03:05.2]} 15. Nxe6 {[%clk 0:03:31.8]} 15...
Rxf1+ {[%clk 0:03:02.7]} 16. Qxf1 {[%clk 0:03:28.2]} 16... Qd7 {[%clk 0:02:56]}
17. Qf5 {[%clk 0:02:56.1]} 17... Nc4 {[%clk 0:01:49.4]} 18. Rf1 {[%clk
0:02:17.9]} 18... Bf6 {[%clk 0:01:17.2]} 19. Bd4 {[%clk 0:01:23]} 19... Bxd4+
{[%clk 0:00:57.2]} 20. Nxd4 {[%clk 0:01:19.8]} 20... Qxf5 {[%clk 0:00:33.5]} 21.
Nxf5 {[%clk 0:01:17.4]} 21... Re8 {[%clk 0:00:22.8]} 22. b3 {[%clk 0:01:00.9]}
22... Ne3 {[%clk 0:00:19.6]} 23. Nxe3 {[%clk 0:00:47.6]} 23... Rxe3 {[%clk
0:00:19.5]} 24. Nd1 {[%clk 0:00:40.3]} 24... Re2 {[%clk 0:00:18.4]} 25. Rf2
{[%clk 0:00:20.1]} 25... Re1+ {[%clk 0:00:17.1]} 26. Rf1 {[%clk 0:00:18.6]}
26... Rxf1+ {[%clk 0:00:13.7]} 27. Kxf1 {[%clk 0:00:17]} 27... Kf7 {[%clk
0:00:12.8]} 28. Ne3 {[%clk 0:00:15.3]} 28... Ke6 {[%clk 0:00:11.7]} 29. Nf5
{[%clk 0:00:14.1]} 29... g6 {[%clk 0:00:10.3]} 30. Nd4+ {[%clk 0:00:12.5]} 30...
Kd6 {[%clk 0:00:09.6]} 31. Nxc6 {[%clk 0:00:12]} 31... Kxc6 {[%clk 0:00:09.5]}
32. Ke2 {[%clk 0:00:11]} 32... Kc5 {[%clk 0:00:08.7]} 33. Kd3 {[%clk 0:00:09.5]}
33... Kb4 {[%clk 0:00:07.9]} 34. Kd2 {[%clk 0:00:06.3]} 34... Ka3 {[%clk
0:00:07.2]} 35. c4 {[%clk 0:00:05.5]} 35... Kxa2 {[%clk 0:00:06.6]} 36. cxd5
{[%clk 0:00:03.9]} 36... Kxb3 {[%clk 0:00:05.8]} 37. d6 {[%clk 0:00:03.5]} 37...
a5 {[%clk 0:00:05.1]} 38. d7 {[%clk 0:00:03.1]} 38... a4 {[%clk 0:00:05]} 39.
d8=Q {[%clk 0:00:02.6]} 39... a3 {[%clk 0:00:04.9]} 40. Qxb6+ {[%clk 0:00:01.6]}
40... Kc4 {[%clk 0:00:03]} 41. Qe3 {[%clk 0:00:00.3]} 41... Kd5 {[%clk
0:00:02.9]} 0-1

[Event "Live Chess"]
[Site "Chess.com"]
[Date "2023.05.21"]
[Round "-"]
[White "mirandaasilva"]
[Black "Conradical12"]
[Result "0-1"]
[WhiteElo "1673"]
[BlackElo "1638"]
[TimeControl "300"]
[EndTime "22:23:24 PDT"]
[Termination "Conradical12 won by resignation"]

1. e4 {[%clk 0:04:55.9]} 1... e5 {[%clk 0:04:59.5]} 2. Nf3 {[%clk 0:04:54.1]}
2... Nc6 {[%clk 0:04:59.1]} 3. Bc4 {[%clk 0:04:51.8]} 3... Nf6 {[%clk
0:04:58.7]} 4. d3 {[%clk 0:04:50.6]} 4... Bc5 {[%clk 0:04:57.4]} 5. a4 {[%clk
0:04:49.6]} 5... a5 {[%clk 0:04:55.4]} 6. O-O {[%clk 0:04:47.1]} 6... O-O {[%clk
0:04:52.6]} 7. c3 {[%clk 0:04:44.8]} 7... d5 {[%clk 0:04:46.1]} 8. exd5 {[%clk
0:04:42.5]} 8... Nxd5 {[%clk 0:04:44.9]} 9. Nbd2 {[%clk 0:04:41.1]} 9... Nb6
{[%clk 0:04:43.5]} 10. Bb5 {[%clk 0:04:37.6]} 10... Na7 {[%clk 0:04:40.3]} 11.
Ne4 {[%clk 0:04:33.5]} 11... Nxb5 {[%clk 0:04:36.8]} 12. Nxc5 {[%clk 0:04:24.4]}
12... Nd6 {[%clk 0:04:35.1]} 13. Nxe5 {[%clk 0:04:19.5]} 13... h6 {[%clk
0:04:30.3]} 14. Qf3 {[%clk 0:04:04.6]} 14... Be6 {[%clk 0:04:20.4]} 15. c4
{[%clk 0:03:47]} 15... Rb8 {[%clk 0:03:25.9]} 16. Qg3 {[%clk 0:03:36]} 16... Nf5
{[%clk 0:03:18.9]} 17. Qf3 {[%clk 0:03:32]} 17... Nd4 {[%clk 0:03:11.8]} 18. Qg3
{[%clk 0:03:27.1]} 18... Ne2+ {[%clk 0:03:09.7]} 19. Kh1 {[%clk 0:03:18.7]}
19... Nxg3+ {[%clk 0:03:09.6]} 20. hxg3 {[%clk 0:03:17.4]} 20... Qd4 {[%clk
0:03:04]} 21. Nxe6 {[%clk 0:03:00.1]} 21... fxe6 {[%clk 0:03:00.3]} 22. Nf3
{[%clk 0:02:57.2]} 22... Qxd3 {[%clk 0:02:55.5]} 23. Be3 {[%clk 0:02:55.5]}
23... Nxc4 {[%clk 0:02:52.5]} 24. Rfd1 {[%clk 0:02:52.9]} 24... Qf5 {[%clk
0:02:48.8]} 25. b3 {[%clk 0:02:51.8]} 25... Nxe3 {[%clk 0:02:46.8]} 26. fxe3
{[%clk 0:02:51.7]} 26... e5 {[%clk 0:02:44.4]} 27. Rd5 {[%clk 0:02:49.5]} 27...
Qe4 {[%clk 0:02:37.5]} 28. Rxe5 {[%clk 0:02:48.2]} 28... Qg4 {[%clk 0:02:32.1]}
29. Rd1 {[%clk 0:02:41]} 29... Rxf3 {[%clk 0:02:27.5]} 30. gxf3 {[%clk
0:02:38.5]} 30... Qxf3+ {[%clk 0:02:27.4]} 0-1

[Event "Live Chess"]
[Site "Chess.com"]
[Date "2023.05.21"]
[Round "-"]
[White "Shepherds_Pie"]
[Black "Singapourfeuj"]
[Result "0-1"]
[WhiteElo "1917"]
[BlackElo "2197"]
[TimeControl "300"]
[EndTime "22:23:32 PDT"]
[Termination "Singapourfeuj won by resignation"]

1. c4 {[%clk 0:04:55]} 1... Nf6 {[%clk 0:04:57.9]} 2. Nc3 {[%clk 0:04:53.5]}
2... g6 {[%clk 0:04:56.4]} 3. g3 {[%clk 0:04:52.1]} 3... Bg7 {[%clk 0:04:55.4]}
4. Bg2 {[%clk 0:04:51]} 4... O-O {[%clk 0:04:54.4]} 5. Nf3 {[%clk 0:04:49.7]}
5... c5 {[%clk 0:04:51.9]} 6. O-O {[%clk 0:04:48.3]} 6... Nc6 {[%clk 0:04:50.9]}
7. d4 {[%clk 0:04:47]} 7... d6 {[%clk 0:04:49.3]} 8. dxc5 {[%clk 0:04:44.9]}
8... dxc5 {[%clk 0:04:48.5]} 9. Qa4 {[%clk 0:04:43.4]} 9... Qa5 {[%clk
0:04:44.4]} 10. Rd1 {[%clk 0:04:23.6]} 10... Be6 {[%clk 0:04:37.2]} 11. Nd2
{[%clk 0:04:21.1]} 11... Qxa4 {[%clk 0:04:31.6]} 12. Nxa4 {[%clk 0:04:19.8]}
12... Nd7 {[%clk 0:04:29.7]} 13. Ne4 {[%clk 0:04:10.9]} 13... Nd4 {[%clk
0:04:26.9]} 14. Naxc5 {[%clk 0:04:02]} 14... Nxc5 {[%clk 0:04:25.7]} 15. Nxc5
{[%clk 0:04:00.7]} 15... Nxe2+ {[%clk 0:04:24.7]} 16. Kh1 {[%clk 0:03:59.3]}
16... Bxc4 {[%clk 0:04:19.1]} 17. Be3 {[%clk 0:03:49]} 17... Rad8 {[%clk
0:04:12]} 18. Bf1 {[%clk 0:03:33.2]} 18... Bxb2 {[%clk 0:04:04.8]} 19. Rab1
{[%clk 0:03:29.7]} 19... Rxd1 {[%clk 0:04:03.2]} 20. Rxd1 {[%clk 0:03:28.2]}
20... Nc3 {[%clk 0:04:01.7]} 21. Rd7 {[%clk 0:03:20.4]} 21... Bxf1 {[%clk
0:03:59.6]} 22. Rxe7 {[%clk 0:03:10.5]} 22... Nd5 {[%clk 0:03:56.6]} 23. Rxb7
{[%clk 0:03:07.9]} 23... Nxe3 {[%clk 0:03:49.7]} 24. Rxb2 {[%clk 0:03:03.8]}
24... Nf5 {[%clk 0:03:44.9]} 25. Kg1 {[%clk 0:02:58]} 25... Bc4 {[%clk
0:03:40.4]} 26. Nd7 {[%clk 0:02:55.8]} 26... Rd8 {[%clk 0:03:36.7]} 27. Nf6+
{[%clk 0:02:51.1]} 27... Kg7 {[%clk 0:03:35.2]} 0-1

[Event "Live Chess"]
[Site "Chess.com"]
[Date "2023.05.21"]
[Round "-"]
[White "KeithArkell"]
[Black "chessfiction"]
[Result "1-0"]
[WhiteElo "2560"]
[BlackElo "2338"]
[TimeControl "300"]
[EndTime "22:23:38 PDT"]
[Termination "KeithArkell won by resignation"]

1. d4 {[%clk 0:04:56.5]} 1... d5 {[%clk 0:04:58.5]} 2. Nf3 {[%clk 0:04:55.5]}
2... Nc6 {[%clk 0:04:57.1]} 3. c4 {[%clk 0:04:54.6]} 3... Bg4 {[%clk 0:04:55.4]}
4. Nc3 {[%clk 0:04:53.8]} 4... Nf6 {[%clk 0:04:49.3]} 5. cxd5 {[%clk 0:04:52.3]}
5... Nxd5 {[%clk 0:04:46.9]} 6. e4 {[%clk 0:04:51.4]} 6... Nxc3 {[%clk
0:04:40.6]} 7. bxc3 {[%clk 0:04:50.1]} 7... e6 {[%clk 0:04:37.1]} 8. Bb5 {[%clk
0:04:46.9]} 8... Be7 {[%clk 0:04:30.3]} 9. Bxc6+ {[%clk 0:04:34.7]} 9... bxc6
{[%clk 0:04:30.2]} 10. Qa4 {[%clk 0:04:33.1]} 10... O-O {[%clk 0:04:25.4]} 11.
Ne5 {[%clk 0:04:31.7]} 11... Bh5 {[%clk 0:04:20.2]} 12. Nxc6 {[%clk 0:04:30.6]}
12... Qd7 {[%clk 0:04:17.2]} 13. Nxe7+ {[%clk 0:04:29.9]} 13... Qxe7 {[%clk
0:04:17.1]} 14. O-O {[%clk 0:04:23.1]} 14... c5 {[%clk 0:04:04.1]} 15. Ba3
{[%clk 0:04:19.8]} 15... Qg5 {[%clk 0:03:53.8]} 16. f4 {[%clk 0:04:18.7]} 16...
Qg6 {[%clk 0:03:51]} 17. Bxc5 {[%clk 0:04:15.1]} 17... Rfc8 {[%clk 0:03:42.1]}
18. f5 {[%clk 0:04:14]} 18... Qg5 {[%clk 0:03:22]} 19. fxe6 {[%clk 0:04:09.4]}
19... fxe6 {[%clk 0:03:19.5]} 20. Rae1 {[%clk 0:04:00.6]} 20... Rab8 {[%clk
0:03:16.6]} 21. Rf2 {[%clk 0:03:16.2]} 21... Rb7 {[%clk 0:03:10.1]} 22. h3
{[%clk 0:03:13.4]} 22... Rcb8 {[%clk 0:03:02.6]} 23. Qc6 {[%clk 0:03:12.3]}
23... h6 {[%clk 0:02:41.2]} 24. Qxe6+ {[%clk 0:03:04.9]} 24... Kh8 {[%clk
0:02:40.4]} 25. Qf5 {[%clk 0:03:02.8]} 25... Rb1 {[%clk 0:02:35.2]} 26. Rxb1
{[%clk 0:02:57.5]} 26... Rxb1+ {[%clk 0:02:32.9]} 27. Kh2 {[%clk 0:02:56.8]}
27... Qc1 {[%clk 0:02:27.9]} 28. Qxh5 {[%clk 0:02:47.1]} 28... Qh1+ {[%clk
0:02:26]} 29. Kg3 {[%clk 0:02:46.5]} 29... Rc1 {[%clk 0:02:19.6]} 30. Rf8+
{[%clk 0:02:44.8]} 30... Kh7 {[%clk 0:02:17.9]} 31. Qf5+ {[%clk 0:02:44]} 1-0

[Event "Live Chess"]
[Site "Chess.com"]
[Date "2023.05.21"]
[Round "-"]
[White "RockTroll"]
[Black "Biranidun"]
[Result "0-1"]
[WhiteElo "2245"]
[BlackElo "2549"]
[TimeControl "300"]
[EndTime "22:24:02 PDT"]
[Termination "Biranidun won by resignation"]

1. d4 {[%clk 0:04:57.9]} 1... Nf6 {[%clk 0:04:58.2]} 2. c4 {[%clk 0:04:56.8]}
2... g6 {[%clk 0:04:57.3]} 3. f3 {[%clk 0:04:55.2]} 3... Bg7 {[%clk 0:04:55.8]}
4. e4 {[%clk 0:04:54.3]} 4... d6 {[%clk 0:04:55.7]} 5. Nc3 {[%clk 0:04:53.7]}
5... O-O {[%clk 0:04:55.6]} 6. Nge2 {[%clk 0:04:52.9]} 6... c5 {[%clk 0:04:55]}
7. d5 {[%clk 0:04:52.2]} 7... e6 {[%clk 0:04:54.3]} 8. Ng3 {[%clk 0:04:51.9]}
8... exd5 {[%clk 0:04:53.3]} 9. cxd5 {[%clk 0:04:51.8]} 9... a6 {[%clk
0:04:51.3]} 10. a4 {[%clk 0:04:51.1]} 10... Re8 {[%clk 0:04:49.5]} 11. Be2
{[%clk 0:04:50.4]} 11... h5 {[%clk 0:04:48.2]} 12. Bg5 {[%clk 0:04:47.9]} 12...
Qb6 {[%clk 0:04:46.9]} 13. Qd2 {[%clk 0:04:46]} 13... Nh7 {[%clk 0:04:44.7]} 14.
Bh6 {[%clk 0:04:40.7]} 14... Bxh6 {[%clk 0:04:41.7]} 15. Qxh6 {[%clk 0:04:40.2]}
15... Qxb2 {[%clk 0:04:41.3]} 16. Rc1 {[%clk 0:04:38.9]} 16... h4 {[%clk
0:04:35.6]} 17. Nf1 {[%clk 0:03:45.4]} 17... Nd7 {[%clk 0:04:34.3]} 18. Kf2
{[%clk 0:03:22.5]} 18... Ne5 {[%clk 0:04:30.3]} 19. Nd2 {[%clk 0:03:06]} 19...
Bd7 {[%clk 0:04:00.4]} 20. Rhd1 {[%clk 0:02:50.3]} 20... b5 {[%clk 0:03:45]} 21.
Qxh4 {[%clk 0:02:44.2]} 21... b4 {[%clk 0:03:40.7]} 22. Ncb1 {[%clk 0:02:38.4]}
22... Bxa4 {[%clk 0:03:36.8]} 23. f4 {[%clk 0:02:29.9]} 23... Bxd1 {[%clk
0:03:30.6]} 24. Rxd1 {[%clk 0:02:29.8]} 24... Qd4+ {[%clk 0:03:06.2]} 25. Kf1
{[%clk 0:02:22.7]} 25... Nd3 {[%clk 0:03:06.1]} 26. Nf3 {[%clk 0:02:18.2]} 26...
Qxe4 {[%clk 0:03:03.9]} 27. Bxd3 {[%clk 0:02:15.1]} 27... Qxd5 {[%clk 0:02:51]}
28. Qxh7+ {[%clk 0:02:12]} 28... Kxh7 {[%clk 0:02:50]} 29. Bxg6+ {[%clk
0:02:11]} 29... fxg6 {[%clk 0:02:45.3]} 30. Rxd5 {[%clk 0:02:10.6]} 30... Red8
{[%clk 0:02:39.4]} 31. Ng5+ {[%clk 0:01:58.9]} 31... Kg8 {[%clk 0:02:36.9]} 32.
Nd2 {[%clk 0:01:56.9]} 32... a5 {[%clk 0:02:35.8]} 33. Nde4 {[%clk 0:01:56]}
33... a4 {[%clk 0:02:29.1]} 34. Nf6+ {[%clk 0:01:51.3]} 34... Kg7 {[%clk
0:02:28.3]} 35. Ng4 {[%clk 0:01:49.7]} 35... a3 {[%clk 0:02:19.5]} 36. Ne6+
{[%clk 0:01:48.8]} 36... Kh8 {[%clk 0:02:11.5]} 37. Kf2 {[%clk 0:01:01.9]} 37...
Re8 {[%clk 0:02:04.9]} 38. Ng5 {[%clk 0:00:58.2]} 38... a2 {[%clk 0:02:02.6]}
39. Nf7+ {[%clk 0:00:50.6]} 39... Kg7 {[%clk 0:02:01.7]} 0-1